bitfinex/quotes_SOLUSD_20230104
["timestamp","ask_amount","ask_price","bid_price","bid_amount"]
[1672848996697,224.7,13.568,13.539,55.44]
[1672848996912,224.7,13.566,13.539,55.44]
[1672848997229,224.7,13.564,13.539,55.44]
[1672848997419,55.34,13.565,13.539,55.44]
[1672848997420,224.7,13.562,13.539,55.44]
[1672848997632,20.0,13.561,13.539,55.44]
[1672848997952,28.86492854,13.561,13.539,55.44]
[1672848998163,20.0,13.561,13.539,55.44]
[1672848998368,26.5386433,13.561,13.539,55.44]
[1672848998579,8.86492854,13.56,13.538,163.9156]
[1672848998793,20.0,13.559,13.538,163.9156]
[1672848999225,26.5386433,13.559,13.538,108.4656]
[1672848999641,8.86492854,13.558,13.538,108.4656]
[1672848999841,20.0,13.557,13.538,108.4656]
[1672849000177,20.0,13.559,13.538,108.4656]
[1672849000359,224.7,13.564,13.538,108.4656]
[1672849000569,224.7,13.562,13.538,108.4656]
[1672849000889,20.0,13.561,13.538,108.4656]
[1672849001316,224.7,13.56,13.538,147.18700066]
[1672849001521,20.0,13.559,13.538,147.18700066]
[1672849002157,20.0,13.559,13.538,202.63700066]
[1672849002479,20.0,13.559,13.538,147.18700066]
[1672849002695,224.7,13.562,13.538,147.18700066]
[1672849002886,20.0,13.561,13.538,202.63700066]
[1672849003095,26.5386433,13.561,13.538,202.63700066]
[1672849003644,26.5386433,13.561,13.539,38.72140066]
[1672849003645,20.0,13.561,13.539,38.72140066]
[1672849003954,224.7,13.563,13.539,38.72140066]
[1672849004283,20.0,13.562,13.54,38.72140066]
[1672849004476,26.5386433,13.562,13.538,147.18700066]
[1672849004665,231.2386433,13.561,13.538,147.18700066]
[1672849004876,20.0,13.56,13.538,147.18700066]
[1672849005098,26.5386433,13.56,13.538,147.18700066]
[1672849005296,26.5386433,13.56,13.539,55.44]
[1672849005506,26.5386433,13.56,13.538,202.63700066]
[1672849005941,20.0,13.56,13.54,38.72140066]
[1672849006162,6.5386433,13.562,13.54,38.72140066]
[1672849006349,20.0,13.561,13.538,163.9156]
[1672849007098,6.5386433,13.561,13.538,163.9156]
[1672849007509,20.0,13.56,13.538,163.9156]
[1672849007959,6.5386433,13.559,13.538,163.9156]
[1672849008150,20.0,13.558,13.538,163.9156]
[1672849008682,26.5386433,13.558,13.538,108.4656]
[1672849010882,26.5386433,13.558,13.538,163.9156]
[1672849011092,26.5386433,13.558,13.538,108.4656]
[1672849011304,26.5386433,13.558,13.538,163.9156]
[1672849011494,6.5386433,13.558,13.539,20.0]
[1672849011704,224.7,13.563,13.539,20.0]
[1672849011705,224.7,13.563,13.54,55.44]
[1672849012143,224.7,13.563,13.541,20.0]
[1672849012354,224.7,13.563,13.542,55.43]
[1672849012561,224.7,13.562,13.543,20.0]
[1672849012776,224.7,13.562,13.544,55.42]
[1672849012973,224.7,13.562,13.545,20.0]
[1672849013185,224.7,13.562,13.546,55.41]
[1672849013395,13.48936508,13.566,13.546,55.41]
[1672849013606,224.7,13.576,13.546,55.41]
[1672849013815,6.5386433,13.57,13.547,112.1016]
[1672849014030,75.3,13.575,13.547,112.1016]
[1672849014031,20.0,13.569,13.547,112.1016]
[1672849014457,33.48936508,13.569,13.547,112.1016]
[1672849014673,224.7,13.568,13.547,112.1016]
[1672849014862,20.0,13.567,13.547,112.1016]
[1672849015072,26.5386433,13.567,13.547,112.1016]
[1672849015494,6.5386433,13.566,13.547,112.1016]
[1672849016238,224.7,13.565,13.539,55.44]
[1672849016453,61.8686433,13.566,13.538,108.4656]
[1672849016454,224.7,13.563,13.538,108.4656]
[1672849016648,224.7,13.561,13.538,108.4656]
[1672849016856,20.0,13.56,13.538,108.4656]
[1672849017081,224.7,13.559,13.538,108.4656]
[1672849017281,20.0,13.558,13.538,108.4656]
[1672849018244,6.35260884,13.558,13.538,108.4656]
[1672849018455,20.0,13.557,13.538,108.4656]
[1672849019400,26.35260884,13.557,13.538,108.4656]
[1672849020751,224.7,13.556,13.538,108.4656]
[1672849021172,6.35260884,13.555,13.538,108.4656]
[1672849021376,224.7,13.556,13.538,108.4656]
[1672849021809,20.0,13.557,13.538,108.4656]
[1672849022018,20.0,13.56,13.538,108.4656]
[1672849022223,244.7,13.56,13.538,108.4656]
[1672849022451,251.05260884,13.56,13.538,108.4656]
[1672849022655,224.7,13.558,13.538,108.4656]
[1672849022862,20.0,13.557,13.538,108.4656]
[1672849023068,20.0,13.557,13.534,55.46]
[1672849023069,224.7,13.555,13.532,55.47]
[1672849023279,224.7,13.553,13.529,55.48]
[1672849023497,20.0,13.552,13.529,55.48]
[1672849024448,224.7,13.553,13.529,55.48]
[1672849024649,224.7,13.553,13.532,55.47]
[1672849025066,224.7,13.553,13.533,20.0]
[1672849025278,224.7,13.553,13.534,55.46]
[1672849025612,6.1665703,13.56,13.535,20.0]
[1672849026010,244.7,13.559,13.535,20.0]
[1672849026220,244.7,13.559,13.533,20.0]
[1672849026441,250.8665703,13.559,13.534,55.46]
[1672849026766,250.8665703,13.559,13.535,20.0]
[1672849026964,20.0,13.559,13.535,20.0]
[1672849027168,20.0,13.562,13.536,55.45]
[1672849027379,20.0,13.562,13.535,55.46]
[1672849027592,20.0,13.562,13.535,173.2488]
[1672849027900,224.7,13.56,13.536,21.7811836]
[1672849028115,20.0,13.559,13.537,55.45]
[1672849028651,20.0,13.559,13.536,55.45]
[1672849028860,244.7,13.559,13.536,55.45]
[1672849029074,224.7,13.557,13.529,55.48]
[1672849029267,224.7,13.555,13.528,4.17507192]
[1672849029481,224.7,13.553,13.528,4.17507192]
[1672849029687,224.7,13.551,13.528,4.17507192]
[1672849029897,20.0,13.55,13.528,4.17507192]
[1672849030428,275.74851285,13.572,13.529,55.48]
[1672849030429,224.7,13.563,13.529,55.48]
[1672849030642,224.7,13.561,13.532,55.47]
[1672849030848,20.0,13.56,13.532,55.47]
[1672849031173,224.7,13.561,13.533,20.0]
[1672849031373,224.7,13.561,13.534,55.46]
[1672849031578,224.7,13.562,13.535,20.0]
[1672849031797,224.7,13.562,13.536,55.45]
[1672849032016,230.86375178,13.562,13.536,55.45]
[1672849032435,20.0,13.561,13.536,55.45]
[1672849032939,244.7,13.561,13.536,55.45]
[1672849033363,250.86375178,13.561,13.536,55.45]
[1672849033788,244.7,13.561,13.536,55.45]
[1672849034011,224.7,13.56,13.536,55.45]
[1672849034344,20.0,13.559,13.536,55.45]
[1672849035379,20.0,13.561,13.536,55.45]
[1672849035568,5.98838356,13.559,13.535,134.1707]
[1672849035786,244.7,13.558,13.536,55.45]
[1672849036095,250.68838356,13.558,13.536,55.45]
[1672849036303,250.68838356,13.558,13.535,134.1707]
[1672849036738,25.98838356,13.558,13.535,134.1707]
[1672849037784,20.0,13.558,13.535,134.1707]
[1672849038223,25.98838356,13.558,13.535,134.1707]
[1672849039187,20.0,13.558,13.535,134.1707]
[1672849039903,25.98838356,13.558,13.535,134.1707]
[1672849042014,25.98838356,13.558,13.536,55.45]
[1672849042232,20.0,13.558,13.536,55.45]
[1672849042533,230.51814709,13.559,13.536,55.45]
[1672849042752,20.0,13.558,13.536,55.45]
[1672849043590,20.0,13.56,13.536,55.45]
[1672849044208,224.7,13.561,13.536,55.45]
[1672849044538,224.7,13.576,13.537,41.7811836]
[1672849044754,224.7,13.574,13.538,55.45]
[1672849044962,224.7,13.572,13.539,20.0]
[1672849045168,224.7,13.57,13.54,55.44]
[1672849045366,224.7,13.568,13.54,77.2211836]
[1672849045578,20.0,13.567,13.541,20.0]
[1672849045796,230.51814709,13.568,13.542,55.43]
[1672849046011,5.81814709,13.567,13.543,20.0]
[1672849046222,5.81814709,13.567,13.544,55.42]
[1672849046414,5.81814709,13.567,13.545,20.0]
[1672849046846,230.51814709,13.567,13.545,20.0]
[1672849047063,230.51814709,13.567,13.543,20.0]
[1672849047263,230.51814709,13.567,13.544,55.42]
[1672849047474,230.51814709,13.567,13.545,20.0]
[1672849048019,5.65275371,13.572,13.545,20.0]
[1672849048206,224.7,13.57,13.546,174.9861]
[1672849048417,20.0,13.569,13.546,119.5761]
[1672849048649,25.65275371,13.569,13.546,119.5761]
[1672849048841,230.35275371,13.568,13.546,119.5761]
[1672849049045,20.0,13.567,13.546,119.5761]
[1672849049255,25.65275371,13.567,13.546,119.5761]
[1672849049488,5.65275371,13.566,13.546,119.5761]
[1672849050030,224.7,13.564,13.539,55.44]
[1672849050232,224.7,13.562,13.534,115.3329]
[1672849050440,20.0,13.561,13.535,55.46]
[1672849050965,224.7,13.559,13.534,170.7929]
[1672849051178,224.7,13.557,13.534,115.3329]
[1672849051706,5.65275371,13.556,13.534,115.3329]
[1672849052328,14.06492854,13.558,13.534,115.3329]
[1672849052538,20.0,13.557,13.534,115.3329]
[1672849053075,20.0,13.557,13.535,55.46]
[1672849054127,20.0,13.558,13.535,55.46]
[1672849054551,20.0,13.558,13.539,55.44]
[1672849054738,258.23185909,13.579,13.539,55.44]
[1672849054739,224.7,13.569,13.539,55.44]
[1672849054952,224.7,13.567,13.539,77.2211836]
[1672849055160,224.7,13.565,13.539,77.2211836]
[1672849055370,20.0,13.564,13.539,77.2211836]
[1672849056206,20.0,13.564,13.539,129.17448087]
[1672849056635,14.06492854,13.567,13.54,20.0]
[1672849056636,224.7,13.565,13.54,20.0]
[1672849056845,224.7,13.565,13.541,55.43]
[1672849057164,224.7,13.565,13.542,20.0]
[1672849057367,224.7,13.565,13.543,55.43]
[1672849057580,14.06492854,13.567,13.544,20.0]
[1672849057790,14.06492854,13.567,13.545,55.42]
[1672849058014,5.65275371,13.566,13.544,132.7216]
[1672849058646,19.71768225,13.566,13.544,132.7216]
[1672849059061,5.65275371,13.565,13.545,55.42]
[1672849059268,5.65275371,13.565,13.544,131.7216]
[1672849059269,19.71768225,13.565,13.544,131.7216]
[1672849059801,5.65275371,13.565,13.544,131.7216]
[1672849060001,14.06492854,13.567,13.545,55.42]
[1672849060210,224.7,13.569,13.545,55.42]
[1672849060423,34.06492854,13.568,13.545,163.6365]
[1672849060842,20.0,13.568,13.545,163.6365]
[1672849061053,20.0,13.57,13.545,163.6365]
[1672849061478,250.35275371,13.57,13.545,163.6365]
[1672849062121,261.79168225,13.57,13.545,163.6365]
[1672849062334,250.35275371,13.57,13.545,163.6365]
[1672849062531,25.65275371,13.57,13.545,163.6365]
[1672849064520,20.0,13.57,13.545,163.6365]
[1672849064728,25.65275371,13.572,13.545,163.6365]
[1672849065057,37.09168225,13.572,13.545,163.6365]
[1672849065252,5.65275371,13.571,13.545,163.6365]
[1672849065464,20.0,13.57,13.545,163.6365]
[1672849065797,25.65275371,13.57,13.545,163.6365]
[1672849066195,25.65275371,13.57,13.545,162.6365]
[1672849067989,25.65275371,13.57,13.545,108.2165]
[1672849068318,25.65275371,13.57,13.546,55.41]
[1672849068509,25.65275371,13.57,13.545,163.6365]
[1672849069767,25.65275371,13.57,13.545,185.4176836]
[1672849070204,20.0,13.57,13.545,185.4176836]
[1672849070403,5.65275371,13.571,13.545,185.4176836]
[1672849070612,20.0,13.57,13.545,185.4176836]
[1672849070835,25.65275371,13.57,13.545,185.4176836]
[1672849071028,25.65275371,13.57,13.545,163.6365]
[1672849072847,25.65275371,13.57,13.545,185.4176836]
[1672849073056,20.0,13.57,13.545,185.4176836]
[1672849073266,20.0,13.576,13.545,185.4176836]
[1672849073666,25.65275371,13.576,13.545,185.4176836]
[1672849073879,5.65275371,13.575,13.545,163.6365]
[1672849074314,5.65275371,13.575,13.546,20.0]
[1672849074514,20.0,13.574,13.547,55.41]
[1672849074723,20.0,13.574,13.547,77.1911836]
[1672849074934,20.0,13.574,13.548,21.7811836]
[1672849075146,20.0,13.576,13.549,55.4]
[1672849075561,20.0,13.577,13.549,77.1811836]
[1672849075876,75.29,13.577,13.549,127.34829871]
[1672849076099,121.50395371,13.578,13.55,20.0]
[1672849076304,121.50395371,13.578,13.551,55.39]
[1672849076519,121.50395371,13.578,13.552,20.0]
[1672849076726,5.65275371,13.578,13.553,174.8303]
[1672849076937,5.65275371,13.578,13.554,20.0]
[1672849077151,118.7799,13.585,13.555,55.38]
[1672849077357,5.65275371,13.58,13.555,55.38]
[1672849077561,5.65275371,13.58,13.555,77.1611836]
[1672849077989,20.0,13.579,13.555,77.1611836]
[1672849078196,55.26,13.584,13.555,77.1611836]
[1672849078522,5.65275371,13.588,13.556,73.05386566]
[1672849078720,5.65275371,13.588,13.557,55.37]
[1672849078936,55.23,13.592,13.557,125.2563826]
[1672849079154,25.65275371,13.591,13.558,41.7811836]
[1672849079379,25.65275371,13.591,13.559,55.36]
[1672849079559,5.65275371,13.59,13.56,20.0]
[1672849079769,5.65275371,13.59,13.561,55.35]
[1672849079978,5.65275371,13.59,13.562,20.0]
[1672849080183,5.65275371,13.59,13.563,163.5241]
[1672849080626,5.65275371,13.59,13.564,20.0]
[1672849080824,5.65275371,13.59,13.565,55.34]
[1672849082394,5.65275371,13.59,13.565,77.1211836]
[1672849082604,5.65275371,13.59,13.565,55.34]
[1672849083039,20.0,13.589,13.565,55.34]
[1672849083452,5.65275371,13.588,13.565,55.34]
[1672849083665,20.0,13.587,13.565,55.34]
[1672849083976,25.65275371,13.587,13.565,55.34]
[1672849084195,5.65275371,13.587,13.565,55.34]
[1672849085561,55.23,13.591,13.564,75.34]
[1672849085751,20.0,13.59,13.564,75.34]
[1672849085959,25.65275371,13.59,13.564,75.34]
[1672849086396,5.65275371,13.589,13.564,75.34]
[1672849086610,20.0,13.588,13.564,75.34]
[1672849087013,25.65275371,13.588,13.564,75.34]
[1672849088272,25.65275371,13.588,13.564,97.1211836]
[1672849088608,20.0,13.588,13.564,97.1211836]
[1672849088927,55.19,13.6,13.564,97.1211836]
[1672849089119,20.0,13.599,13.565,48.36007079]
[1672849089331,25.65275371,13.599,13.566,75.33]
[1672849089655,5.65275371,13.598,13.566,75.33]
[1672849089970,5.65275371,13.598,13.567,21.7811836]
[1672849089971,20.0,13.597,13.567,21.7811836]
[1672849090178,20.0,13.597,13.568,55.32]
[1672849090398,60.86275371,13.596,13.567,55.33]
[1672849090599,20.0,13.595,13.567,55.33]
[1672849090802,25.65275371,13.595,13.567,55.33]
[1672849091002,5.65275371,13.594,13.567,55.33]
[1672849091214,20.0,13.593,13.567,55.33]
[1672849091659,5.65275371,13.592,13.567,55.33]
[1672849091971,24.82378487,13.591,13.567,55.33]
[1672849092180,63.72877063,13.591,13.567,55.33]
[1672849092382,230.35275371,13.59,13.567,55.33]
[1672849092595,224.7,13.588,13.561,55.35]
[1672849092791,224.7,13.586,13.56,616.97692248]
[1672849093010,224.7,13.584,13.56,616.97692248]
[1672849093208,20.0,13.583,13.56,616.97692248]
[1672849093423,20.0,13.583,13.555,55.38]
[1672849093633,4.82378487,13.582,13.555,55.38]
[1672849093964,5.65275371,13.581,13.555,55.38]
[1672849094175,20.0,13.58,13.555,55.38]
[1672849094601,15.30032345,13.579,13.555,55.38]
[1672849094798,20.0,13.578,13.555,55.38]
[1672849095004,25.65275371,13.578,13.559,112.6035]
[1672849095213,15.30032345,13.577,13.559,112.6035]
[1672849095544,5.65275371,13.576,13.559,112.6035]
[1672849095960,20.0,13.578,13.559,112.6035]
[1672849096178,4.78915674,13.575,13.559,112.6035]
[1672849097006,10.44191045,13.575,13.559,112.6035]
[1672849097442,5.65275371,13.575,13.559,112.6035]
[1672849097844,4.78915674,13.574,13.559,112.6035]
[1672849099229,10.44191045,13.574,13.559,112.6035]
[1672849099651,5.65275371,13.574,13.559,112.6035]
[1672849100061,4.78915674,13.573,13.559,112.6035]
[1672849100499,224.7,13.581,13.559,112.6035]
[1672849100805,4.78915674,13.577,13.559,112.6035]
[1672849101014,4.78915674,13.577,13.559,167.9635]
[1672849101334,10.44191045,13.577,13.559,167.9635]
[1672849101535,10.44191045,13.577,13.559,112.6035]
[1672849101749,5.65275371,13.577,13.56,55.36]
[1672849101955,4.78915674,13.576,13.56,55.36]
[1672849102169,224.7,13.584,13.561,20.0]
[1672849102365,224.7,13.592,13.562,55.35]
[1672849102578,5.65275371,13.586,13.562,191.5249836]
[1672849102792,5.65275371,13.586,13.559,112.6035]
[1672849102793,224.7,13.584,13.559,112.6035]
[1672849103003,20.0,13.583,13.559,112.6035]
[1672849103532,20.0,13.583,13.56,55.36]
[1672849104263,20.0,13.586,13.56,55.36]
[1672849104684,5.65275371,13.585,13.56,55.36]
[1672849105015,14.05992408,13.586,13.561,39.31600888]
[1672849105200,224.7,13.591,13.562,55.35]
[1672849106904,20.0,13.592,13.568,109.68196174]
[1672849107094,20.0,13.592,13.569,76.14314534]
[1672849107309,20.0,13.592,13.57,55.32]
[1672849107520,20.0,13.593,13.57,193.331161]
[1672849107736,20.0,13.593,13.571,138.011161]
[1672849107947,5.65275371,13.598,13.572,55.31]
[1672849108273,224.7,13.596,13.572,171.5399774]
[1672849108477,20.0,13.595,13.572,109.67196174]
[1672849108685,25.65275371,13.595,13.572,76.14314534]
[1672849108881,25.65275371,13.595,13.572,54.36196174]
[1672849109093,25.65275371,13.595,13.573,50.01736937]
[1672849109545,5.65275371,13.594,13.573,50.01736937]
[1672849109741,20.0,13.593,13.573,50.01736937]
[1672849110794,20.0,13.593,13.573,105.31736937]
[1672849111119,25.65275371,13.593,13.574,50.01736937]
[1672849113212,25.65275371,13.593,13.574,49.01736937]
[1672849116279,25.65275371,13.593,13.569,55.32]
[1672849116582,25.65275371,13.593,13.57,21.7811836]
[1672849116781,25.65275371,13.593,13.571,55.31]
[1672849117102,25.65275371,13.593,13.571,105.2407027]
[1672849117324,25.65275371,13.593,13.571,127.0218863]
[1672849118785,25.65275371,13.593,13.571,105.2407027]
[1672849119413,25.65275371,13.593,13.571,55.31]
[1672849119616,25.65275371,13.593,13.567,127.0418863]
[1672849120034,25.65275371,13.593,13.568,71.7118863]
[1672849120244,25.65275371,13.593,13.569,55.32]
[1672849120467,25.65275371,13.593,13.569,77.1011836]
[1672849120694,25.65275371,13.593,13.57,49.9307027]
[1672849120897,25.65275371,13.593,13.566,230.4995]
[1672849120898,224.7,13.592,13.567,55.33]
[1672849121118,20.0,13.591,13.567,55.33]
[1672849121321,25.65275371,13.591,13.567,55.33]
[1672849121640,21.37897471,13.59,13.567,55.33]
[1672849121961,25.65275371,13.589,13.567,55.33]
[1672849122474,5.65275371,13.588,13.567,55.33]
[1672849122687,20.0,13.587,13.567,55.33]
[1672849123306,25.65275371,13.587,13.567,55.33]
[1672849126483,25.65275371,13.587,13.566,49.9307027]
[1672849126484,224.7,13.585,13.566,49.9307027]
[1672849126662,224.7,13.583,13.559,225.6588]
[1672849127088,20.0,13.582,13.559,225.6588]
[1672849127627,5.65275371,13.581,13.559,225.6588]
[1672849127836,20.0,13.58,13.559,225.6588]
[1672849128234,5.81628481,13.579,13.559,225.6588]
[1672849128448,20.0,13.578,13.559,225.6588]
[1672849128658,25.65275371,13.578,13.559,225.6588]
[1672849128873,5.82850481,13.577,13.559,225.6588]
[1672849129396,5.65275371,13.576,13.559,225.6588]
[1672849129606,20.0,13.575,13.553,55.39]
[1672849130037,5.82850481,13.574,13.553,55.39]
[1672849130456,25.65275371,13.573,13.553,55.39]
[1672849130780,25.65275371,13.573,13.552,117.643]
[1672849130781,25.65275371,13.572,13.552,117.643]
[1672849130978,5.65275371,13.572,13.552,117.643]
[1672849131179,25.65275371,13.571,13.553,55.39]
[1672849131615,5.65275371,13.57,13.553,55.39]
[1672849131823,20.0,13.569,13.553,55.39]
[1672849132051,68.34217627,13.571,13.553,55.39]
[1672849132255,244.7,13.571,13.553,55.39]
[1672849132475,5.65275371,13.568,13.552,117.643]
[1672849132997,115.8527,13.579,13.553,55.39]
[1672849133190,20.0,13.578,13.553,55.39]
[1672849133607,20.0,13.578,13.554,20.0]
[1672849133821,244.7,13.578,13.555,55.38]
[1672849134031,25.65275371,13.578,13.555,55.38]
[1672849135093,25.65275371,13.578,13.554,129.1353]
[1672849135528,10.38125692,13.577,13.554,129.1353]
[1672849135929,5.65275371,13.576,13.554,129.1353]
[1672849136449,10.38125692,13.575,13.555,55.38]
[1672849136881,16.03401063,13.575,13.555,55.38]
[1672849138051,10.38125692,13.575,13.555,55.38]
[1672849141182,16.03401063,13.575,13.554,129.1353]
[1672849141721,5.65275371,13.575,13.554,129.1353]
[1672849141929,10.38125692,13.574,13.554,129.1353]
[1672849142141,10.38125692,13.574,13.555,55.38]
[1672849142348,20.76251384,13.574,13.555,55.38]
[1672849142674,26.41526755,13.574,13.555,55.38]
[1672849142874,224.7,13.577,13.555,55.38]
[1672849143080,20.0,13.578,13.555,55.38]
[1672849143290,20.0,13.579,13.555,55.38]
[1672849143501,25.65275371,13.579,13.555,77.1611836]
[1672849143705,20.0,13.579,13.555,77.1611836]
[1672849144038,10.38125692,13.58,13.555,77.1611836]
[1672849144251,20.0,13.579,13.555,77.1611836]
[1672849144563,224.7,13.587,13.556,20.0]
[1672849144763,5.65275371,13.585,13.557,55.37]
[1672849144979,5.65275371,13.585,13.557,77.1511836]
[1672849145181,5.65275371,13.585,13.558,41.7811836]
[1672849145396,5.65275371,13.585,13.559,55.36]
[1672849145605,5.65275371,13.585,13.56,20.0]
[1672849145803,224.7,13.588,13.561,55.35]
[1672849146018,20.0,13.587,13.562,20.0]
[1672849146229,25.65275371,13.587,13.563,168.2494]
[1672849146551,5.65275371,13.587,13.563,168.2494]
[1672849146761,5.65275371,13.586,13.564,20.0]
[1672849146976,224.7,13.588,13.565,55.34]
[1672849147511,230.35275371,13.588,13.565,55.34]
[1672849147706,230.35275371,13.588,13.566,113.8583]
[1672849148031,20.0,13.587,13.566,113.8583]
[1672849148432,25.65275371,13.587,13.566,113.8583]
[1672849150853,25.65275371,13.587,13.564,55.34]
[1672849151079,224.7,13.585,13.563,112.9094]
[1672849151286,224.7,13.583,13.563,112.9094]
[1672849151485,20.0,13.582,13.563,112.9094]
[1672849151695,25.65275371,13.582,13.563,112.9094]
[1672849151901,5.65275371,13.581,13.563,112.9094]
[1672849152115,20.0,13.58,13.563,112.9094]
[1672849152337,30.81141076,13.58,13.563,112.9094]
[1672849152545,5.65275371,13.579,13.563,112.9094]
[1672849153289,20.0,13.578,13.563,112.9094]
[1672849153607,5.65275371,13.577,13.563,112.9094]
[1672849154649,230.35275371,13.577,13.563,112.9094]
[1672849155090,5.65275371,13.576,13.563,112.9094]
[1672849155807,5.65275371,13.576,13.553,55.39]
[1672849156028,20.0,13.575,13.553,55.39]
[1672849156226,30.81141076,13.575,13.547,55.41]
[1672849156432,5.65275371,13.574,13.547,55.41]
[1672849156646,20.0,13.573,13.547,55.41]
[1672849157066,5.65275371,13.572,13.547,55.41]
[1672849157278,20.0,13.571,13.547,55.41]
[1672849157714,5.65275371,13.57,13.547,55.41]
[1672849158028,20.0,13.569,13.547,55.41]
[1672849158236,30.81141076,13.569,13.547,55.41]
[1672849158448,5.65275371,13.568,13.547,55.41]
[1672849158640,20.0,13.567,13.547,55.41]
[1672849158851,224.7,13.573,13.547,55.41]
[1672849159061,5.65275371,13.568,13.553,75.39]
[1672849159277,224.7,13.585,13.553,97.1711836]
[1672849159496,224.7,13.585,13.554,137.6362836]
[1672849159705,224.7,13.583,13.555,75.38]
[1672849160028,279.96,13.583,13.555,75.38]
[1672849160238,244.43742628,13.583,13.555,75.38]
[1672849160445,224.7,13.581,13.555,75.38]
[1672849160658,224.7,13.579,13.555,75.38]
[1672849160866,20.0,13.578,13.555,75.38]
[1672849161070,20.0,13.578,13.555,97.1611836]
[1672849161405,20.0,13.578,13.555,75.38]
[1672849161607,5.65275371,13.577,13.555,75.38]
[1672849162545,10.24331815,13.577,13.555,75.38]
[1672849162756,4.59056444,13.577,13.555,97.1611836]
[1672849162968,5.34365351,13.579,13.555,97.1611836]
[1672849163493,224.7,13.584,13.555,97.1611836]
[1672849163811,3.54189777,13.585,13.556,51.9619411]
[1672849164025,3.54189777,13.585,13.557,75.37]
[1672849164337,3.54189777,13.585,13.557,97.1511836]
[1672849164645,8.88555128,13.585,13.557,75.37]
[1672849164844,8.88555128,13.585,13.558,21.7811836]
[1672849165046,8.88555128,13.585,13.559,75.36]
[1672849165259,8.88555128,13.585,13.559,186.4599]
[1672849165484,8.88555128,13.585,13.559,188.2410836]
[1672849166540,3.54189777,13.585,13.559,188.2410836]
[1672849166749,5.34365351,13.588,13.56,20.0]
[1672849166969,5.34365351,13.588,13.561,55.35]
[1672849167165,5.34365351,13.587,13.562,20.0]
[1672849167376,5.34365351,13.587,13.563,55.34]
[1672849167685,3.54189777,13.586,13.564,20.0]
[1672849167922,224.7,13.585,13.562,108.9473]
[1672849168140,224.7,13.583,13.562,108.9473]
[1672849168320,20.0,13.582,13.562,108.9473]
[1672849168529,28.88555128,13.582,13.562,108.9473]
[1672849168745,230.04365351,13.581,13.562,108.9473]
[1672849168967,20.0,13.58,13.562,108.9473]
[1672849169176,25.34365351,13.58,13.562,108.9473]
[1672849169488,224.7,13.576,13.547,55.41]
[1672849169710,20.0,13.575,13.547,164.0298]
[1672849169913,25.34365351,13.575,13.547,185.8109836]
[1672849170228,36.00100271,13.574,13.547,185.8109836]
[1672849170646,25.34365351,13.573,13.547,185.8109836]
[1672849171051,25.34365351,13.573,13.547,164.0298]
[1672849171267,5.34365351,13.572,13.549,21.7811836]
[1672849171483,224.7,13.578,13.553,55.39]
[1672849171701,5.34365351,13.575,13.553,55.39]
[1672849171914,224.7,13.578,13.553,77.1711836]
[1672849172125,230.04365351,13.578,13.553,77.1711836]
[1672849172432,230.04365351,13.578,13.554,20.0]
[1672849172648,230.04365351,13.578,13.555,55.38]
[1672849172848,3.54189777,13.581,13.556,117.5606]
[1672849173049,224.7,13.588,13.557,75.37]
[1672849173390,224.7,13.588,13.557,97.1511836]